bitfinex/quotes_ETHUSD_20250730
["timestamp","ask_amount","ask_price","bid_price","bid_amount"]
[1753892897564,53.77826893,3808.9,3808.8,0.001]
[1753892898175,35.38870565,3808.5,3808.4,0.001]
[1753892898353,43.18190565,3808.5,3808.4,0.001]
[1753892898779,36.4442,3808.5,3808.4,0.001]
[1753892898959,43.18090565,3808.5,3808.4,0.9032]
[1753892899373,37.7922,3808.5,3808.4,0.463]
[1753892899572,33.6812,3808.5,3808.4,0.9032]
[1753892899905,37.7922,3808.5,3808.4,0.9032]
[1753892900110,33.6812,3808.5,3808.4,0.9032]
[1753892900285,37.7922,3808.5,3808.4,0.9032]
[1753892900495,7.7922,3808.5,3808.4,0.9032]
[1753892900679,37.7922,3808.5,3808.4,0.9032]
[1753892903627,10.41790565,3808.5,3808.4,0.001]
[1753892903772,33.6812,3808.5,3808.4,0.001]
[1753892904122,37.7922,3808.5,3808.4,0.9032]
[1753892904268,37.7922,3808.5,3808.4,0.463]
[1753892905264,40.41790565,3808.5,3808.4,0.463]
[1753892905469,40.41790565,3808.5,3808.4,0.001]
[1753892905702,43.96880565,3808.5,3808.4,0.001]
[1753892905916,45.27756622,3808.5,3808.4,0.001]
[1753892906072,45.60162821,3808.5,3808.4,0.001]
[1753892906277,45.27756622,3808.5,3808.4,0.001]
[1753892907925,44.90020565,3808.5,3808.4,0.001]
[1753892909127,39.85780565,3808.5,3808.4,0.001]
[1753892909430,44.90020565,3808.5,3808.4,0.001]
[1753892910284,9.70228146,3808.1,3808.0,0.001]
[1753892910488,52.54788732,3808.1,3808.0,0.001]
[1753892910687,123.61048732,3808.1,3808.0,0.001]
[1753892910889,153.61048732,3808.1,3808.0,0.001]
[1753892911717,5.93960222,3807.2,3806.6,1.2522]
[1753892911914,49.36360222,3807.2,3806.5,0.462]
[1753892912116,50.42620222,3807.2,3806.5,0.462]
[1753892912321,49.98010222,3807.2,3806.5,0.462]
[1753892913007,50.42620222,3807.2,3806.5,0.462]
[1753892913205,50.62619247,3807.2,3805.9,0.7902]
[1753892913421,51.38949247,3807.2,3806.1,0.502]
[1753892913718,51.76685304,3807.2,3806.1,0.04]
[1753892914918,17.65585304,3807.2,3806.2,0.462]
[1753892915102,43.62399025,3807.2,3806.4,0.7902]
[1753892915314,14.17399025,3807.2,3806.7,0.462]
[1753892915514,16.80059247,3807.2,3806.7,0.9022]
[1753892915719,44.17399025,3807.2,3806.9,0.462]
[1753892915893,14.17399025,3807.2,3806.9,0.462]
[1753892916094,44.17399025,3807.2,3806.9,0.462]
[1753892916341,46.80059247,3807.2,3806.8,0.462]
[1753892916699,44.17399025,3807.2,3806.8,0.462]
[1753892917519,44.17399025,3807.2,3806.4,0.7902]
[1753892917520,40.06299025,3807.2,3807.1,0.9422]
[1753892917721,13.62399025,3807.2,3807.1,1.7547]
[1753892917921,9.51299025,3807.2,3807.1,1.7547]
[1753892918123,0.8148,3808.2,3807.1,1.7547]
[1753892918322,30.0,3807.8,3807.2,0.9022]
[1753892918541,6.315,3807.9,3807.3,0.8125]
[1753892918542,4.111,3807.7,3807.3,0.8125]
[1753892918742,3.0,3807.6,3807.3,0.8125]
[1753892918896,6.315,3807.9,3807.4,0.9022]
[1753892918897,7.111,3807.5,3807.4,0.9022]
[1753892919094,4.661,3807.5,3807.4,0.9022]
[1753892920213,3.0,3807.8,3807.4,0.9022]
[1753892920431,4.111,3807.7,3807.5,0.9022]
[1753892920629,3.0,3807.8,3807.6,0.9022]
[1753892920854,3.0,3807.6,3807.1,0.04]
[1753892921152,7.111,3807.7,3807.1,0.04]
[1753892921153,4.111,3807.5,3807.1,0.04]
[1753892921339,6.315,3807.9,3807.2,0.462]
[1753892921648,4.111,3807.8,3807.3,0.7885]
[1753892922050,4.111,3807.8,3807.5,0.7885]
[1753892922549,4.111,3807.8,3807.7,0.7885]
[1753892922746,4.111,3807.8,3807.7,1.6907]
[1753892922948,4.111,3807.8,3807.7,0.9022]
[1753892923154,4.111,3807.8,3807.7,1.6907]
[1753892924755,4.11,3807.8,3807.7,1.6907]
[1753892925117,4.2412,3807.8,3807.7,1.6907]
[1753892927856,4.7912,3807.8,3807.7,1.6907]
[1753892928359,7.7912,3807.8,3807.7,0.7885]
[1753892930037,7.7912,3807.8,3807.4,0.001]
[1753892930038,3.55,3807.7,3807.4,0.001]
[1753892930233,3.6812,3807.5,3807.4,0.001]
[1753892930450,7.7902,3807.5,3807.4,0.001]
[1753892932072,8.7112,3807.5,3807.4,0.001]
[1753892932731,7.7902,3807.5,3807.4,0.001]
[1753892934497,8.7112,3807.5,3807.4,0.001]
[1753892934988,41.33759527,3807.5,3807.4,0.001]
[1753892935895,38.7112,3807.5,3807.4,0.001]
[1753892936437,41.33759527,3807.5,3807.4,0.001]
[1753892938248,42.14439527,3807.5,3807.4,0.001]
[1753892938475,42.52175584,3807.5,3807.4,0.001]
[1753892939094,38.4658,3807.5,3807.4,0.001]
[1753892939290,36.98319527,3807.5,3807.4,0.001]
[1753892939436,42.01319527,3807.5,3807.4,0.001]
[1753892940867,39.3868,3807.5,3807.4,0.001]
[1753892941067,34.3568,3807.5,3807.4,0.001]
[1753892941370,7.109,3807.5,3807.4,0.001]
[1753892941549,3.0,3807.5,3807.4,0.9214]
[1753892941752,6.315,3807.9,3807.4,0.9214]
[1753892941753,6.315,3807.9,3807.5,0.8157]
[1753892941939,0.55,3807.6,3807.5,1.2717]
[1753892942139,3.0,3807.8,3807.5,1.2717]
[1753892942385,3.55,3807.6,3807.5,1.2717]
[1753892942752,4.659,3807.6,3807.5,1.2717]
[1753892942958,4.659,3807.6,3807.5,1.7361]
[1753892943481,0.55,3807.6,3807.5,1.7361]
[1753892943643,4.659,3807.6,3807.5,1.7361]
[1753892944166,0.55,3807.6,3807.5,1.7361]
[1753892944365,4.659,3807.6,3807.5,1.6741]
[1753892944552,0.55,3807.6,3807.5,1.6741]
[1753892944759,4.658,3807.6,3807.5,1.625]
[1753892946010,0.55,3807.5,3807.4,0.001]
[1753892947211,0.58282994,3807.5,3807.4,0.001]
[1753892947373,1.06622994,3807.5,3807.4,0.001]
[1753892947576,4.471,3807.5,3807.4,0.001]
[1753892948182,4.0334,3807.5,3807.4,0.001]
[1753892948414,3.55,3807.5,3807.4,0.001]
[1753892948778,3.55,3807.5,3807.4,0.457]
[1753892948779,4.108,3807.5,3807.4,0.457]
[1753892948977,4.658,3807.5,3807.4,1.7325]
[1753892949203,4.2392,3807.5,3807.4,1.7325]
[1753892949876,4.2392,3807.5,3807.4,1.6985]
[1753892952279,0.55,3807.4,3807.3,0.001]
[1753892953616,7.657,3807.4,3807.3,1.6937]
[1753892953993,7.657,3807.4,3807.3,1.2293]
[1753892954178,7.657,3807.4,3807.3,0.7733]
[1753892954378,3.0,3807.4,3807.3,1.6937]
[1753892954576,7.107,3807.4,3807.3,1.6937]
[1753892955017,6.315,3807.9,3807.3,0.9214]
[1753892955182,0.1312,3807.6,3807.4,0.9204]
[1753892955381,4.107,3807.5,3807.3,0.001]
[1753892955581,4.107,3807.5,3807.4,0.8219]
[1753892956006,4.107,3807.5,3807.4,1.7423]
[1753892959498,3.1312,3807.8,3807.4,1.7423]
[1753892959695,3.0,3807.6,3807.5,0.464]
[1753892960000,3.0,3807.6,3807.5,0.9052]
[1753892960423,0.1312,3807.8,3807.5,0.9052]
[1753892960622,6.315,3807.9,3807.6,1.6782]
[1753892960942,4.106,3807.8,3807.7,0.9052]
[1753892961116,4.106,3807.8,3807.6,0.773]
[1753892961702,4.106,3807.8,3807.7,0.9052]
[1753892962742,6.315,3807.9,3807.7,0.9052]
[1753892962939,4.106,3807.8,3807.6,0.773]
[1753892963526,4.106,3807.8,3807.7,0.464]
[1753892964929,4.106,3807.8,3807.6,0.773]
[1753892965307,4.106,3807.8,3807.6,1.237]
[1753892968848,6.317,3807.9,3807.6,1.237]
[1753892969054,4.105,3807.8,3807.6,1.237]
[1753892969626,4.105,3807.8,3807.6,0.773]
[1753892970735,0.4847,3807.7,3807.6,0.773]
[1753892970934,3.98642821,3807.7,3807.4,0.001]
[1753892971120,0.1312,3807.5,3807.4,0.001]
[1753892971548,1.0848,3807.5,3807.4,0.001]
[1753892976235,4.11762994,3807.5,3807.4,0.001]
[1753892977316,4.0848,3807.5,3807.4,0.001]
[1753892978558,0.1312,3807.5,3807.4,0.001]
[1753892978735,7.2342,3807.5,3807.4,0.001]
[1753892980220,8.7378,3807.5,3807.4,0.001]
[1753892980452,9.5255,3807.5,3807.4,0.001]
[1753892981827,39.5255,3807.5,3807.4,0.001]
[1753892983762,35.4225,3807.5,3807.4,0.001]
[1753892983963,39.5255,3807.5,3807.4,0.001]
[1753892984464,33.1312,3807.5,3807.4,0.001]
[1753892984630,38.1878,3807.5,3807.4,0.001]
[1753892984826,38.7378,3807.5,3807.4,0.001]
[1753892985029,42.16199527,3807.5,3807.4,0.001]
[1753892985227,42.40826092,3807.5,3807.4,0.001]
[1753892985458,42.16199527,3807.5,3807.4,0.001]
[1753892985962,39.5356,3807.5,3807.4,0.001]
[1753892986337,42.16199527,3807.5,3807.4,0.001]
[1753892986537,12.16199527,3807.5,3807.4,0.001]
[1753892986743,35.4326,3807.5,3807.4,0.001]
[1753892986938,39.5356,3807.5,3807.4,0.001]
[1753892987150,39.78076344,3807.5,3807.4,0.001]
[1753892987426,39.5346,3807.5,3807.4,0.001]
[1753892987767,39.78071911,3807.5,3807.4,0.001]
[1753892988647,39.73071911,3807.5,3807.4,0.001]
[1753892989242,39.4846,3807.5,3807.4,0.001]
[1753892989970,39.4866,3807.5,3807.4,0.001]
[1753892990539,38.01099527,3807.5,3807.4,0.001]
[1753892990740,42.11299527,3807.5,3807.4,0.001]
[1753892990969,42.35900707,3807.5,3807.4,0.001]
[1753892991334,12.11299527,3807.5,3807.4,0.001]
[1753892991644,42.35897804,3807.5,3807.4,0.001]
[1753892992271,37.1852,3807.5,3807.4,0.001]
[1753892992441,4.1852,3807.5,3807.4,0.4948]
[1753892992774,4.1852,3807.5,3807.4,0.9388]
[1753892993144,4.1852,3807.5,3807.4,0.001]
[1753892993348,7.1852,3807.5,3807.4,0.001]
[1753892994871,7.7352,3807.5,3807.4,0.001]
[1753892995058,9.4692,3807.5,3807.4,0.001]
[1753892995247,39.4692,3807.5,3807.4,0.001]
[1753892997171,42.09559527,3807.5,3807.4,0.001]
[1753892997374,42.34158168,3807.5,3807.4,0.001]
[1753892997754,42.09559527,3807.5,3807.4,0.001]
[1753892998370,42.34161663,3807.5,3807.4,0.001]
[1753892998569,42.09559527,3807.5,3807.4,0.001]
[1753893000089,44.85859527,3807.5,3807.4,0.001]
[1753893000407,52.28245584,3807.5,3807.4,0.001]
[1753893000553,52.52854569,3807.5,3807.4,0.001]
[1753893000749,52.44079552,3807.5,3807.4,0.001]
[1753893001762,48.33879552,3807.5,3807.4,0.001]
[1753893001956,52.43979552,3807.5,3807.4,0.001]
[1753893002766,52.54511452,3807.5,3807.4,0.001]
[1753893003591,52.54510657,3807.5,3807.4,0.001]
[1753893004051,42.6150113,3807.5,3807.4,0.001]
[1753893004394,42.1193113,3807.5,3807.4,0.001]
[1753893004577,46.2203113,3807.5,3807.4,0.001]
[1753893004782,46.1149923,3807.5,3807.4,0.001]
[1753893005391,46.6106923,3807.5,3807.4,0.001]
[1753893005604,49.67678757,3807.5,3807.4,0.001]
[1753893005902,53.09771013,3807.5,3807.4,0.001]
[1753893006102,23.09771013,3807.5,3807.4,0.001]
[1753893006304,53.09771013,3807.5,3807.4,0.001]
[1753893006477,54.34964814,3807.5,3807.4,0.001]
[1753893006682,52.43978757,3807.5,3807.4,0.001]
[1753893007208,52.43981655,3807.5,3807.4,0.001]
[1753893007411,6.17646425,3807.4,3807.3,0.001]
[1753893007577,6.17646425,3807.4,3807.1,0.04]
[1753893007578,5.93960222,3807.2,3807.1,0.04]
[1753893007777,39.70447121,3807.1,3807.0,1e-08]
[1753893007993,143.36601505,3807.1,3807.0,1e-08]
[1753893008191,39.68790665,3806.2,3805.4,0.4938]
[1753893008518,46.91910665,3806.2,3805.4,0.4938]
[1753893008918,39.0417,3806.2,3805.4,0.4938]
[1753893009076,41.17329231,3806.2,3805.7,0.4938]
[1753893009381,42.10869231,3806.2,3805.5,0.9378]
[1753893009773,39.68112288,3806.2,3805.5,0.9378]
[1753893009973,42.30841519,3806.2,3805.5,0.9378]
[1753893010170,11.73751519,3806.2,3805.5,0.9378]
[1753893010384,41.98364031,3806.2,3805.5,0.9378]
[1753893010708,42.42334031,3806.2,3805.4,0.4938]
[1753893011014,42.42334031,3806.2,3805.4,0.444]
[1753893011171,42.42334031,3806.2,3805.5,0.4938]
[1753893012101,42.42334031,3806.2,3806.1,0.041]
[1753893012274,34.760648,3806.2,3806.1,0.041]
[1753893012608,42.17721519,3806.2,3806.1,0.041]
[1753893012915,42.42326326,3806.2,3806.1,0.041]
[1753893013907,41.98356326,3806.2,3806.1,0.041]
[1753893014411,38.86057095,3806.2,3806.1,0.041]
[1753893014709,38.61452288,3806.2,3806.1,0.041]
[1753893015072,41.24181519,3806.2,3806.1,0.041]
[1753893015285,38.61452288,3806.2,3806.1,0.041]
[1753893016223,37.14181519,3806.2,3806.1,0.041]
[1753893016524,7.84972288,3806.2,3806.1,0.5348]
[1753893016674,37.84972288,3806.2,3806.1,0.5348]
[1753893017617,37.84972288,3806.2,3806.1,0.041]
[1753893017911,36.17756844,3805.8,3805.7,0.001]
[1753893018129,40.27756844,3805.8,3805.7,0.001]
[1753893018626,7.65,3805.8,3805.7,0.001]
[1753893018779,40.27756844,3805.8,3805.7,0.001]
[1753893020319,42.10836844,3805.8,3805.7,0.001]
[1753893021582,41.21696844,3805.8,3805.7,0.001]
[1753893022431,7.2302,3805.8,3805.7,0.001]
[1753893022640,40.40776844,3805.8,3805.7,0.001]
[1753893022787,37.7802,3805.8,3805.7,0.001]
[1753893023115,37.7802,3805.8,3805.7,0.4514]
[1753893023473,7.7802,3805.8,3805.7,0.4514]
[1753893023710,7.2302,3805.8,3805.7,0.8929]
[1753893023916,4.2302,3805.8,3805.7,1.6923]
[1753893024613,7.2302,3805.8,3805.7,1.6923]
[1753893024819,7.7802,3805.8,3805.7,0.001]
[1753893026018,7.7802,3805.8,3805.7,0.8929]
[1753893026211,8.02610084,3805.8,3805.7,0.8929]
[1753893026414,38.02610084,3805.8,3805.7,0.4514]
[1753893027083,38.02610084,3805.8,3805.7,0.001]
[1753893028201,8.02610084,3805.8,3805.7,0.001]
[1753893028375,8.02610084,3805.8,3805.7,0.4514]
[1753893028575,8.02610084,3805.8,3805.7,0.8929]
[1753893029079,8.02610084,3805.8,3805.7,0.001]
[1753893029478,8.02610084,3805.8,3805.7,0.4514]
[1753893030090,8.02610084,3805.8,3805.7,0.001]
[1753893030719,8.02610084,3805.8,3805.7,0.8929]
[1753893032196,7.47610084,3805.8,3805.7,0.8929]
[1753893032943,7.47610084,3805.8,3805.7,1.6973]
[1753893033086,7.098,3805.8,3805.7,1.6973]
[1753893033789,4.098,3805.8,3805.7,1.6973]
[1753893035789,0.002,3806.2,3805.8,0.8044]
[1753893036005,0.002,3806.2,3806.1,0.1312]
[1753893036294,0.002,3806.2,3806.1,0.9356]
[1753893036837,0.002,3806.2,3806.1,1.8275]
[1753893040439,0.002,3806.2,3806.1,1.84687656]
[1753893041130,0.002,3806.2,3806.1,4.4742379]
[1753893041336,0.002,3806.2,3806.1,1.84687656]
[1753893041499,0.002,3806.2,3806.1,4.4742379]
[1753893041697,0.002,3806.2,3806.1,4.45486134]
[1753893044028,0.002,3806.2,3806.1,1.8275]
[1753893044230,0.002,3806.2,3806.1,0.9356]
[1753893044429,0.002,3806.2,3805.7,0.4425]
[1753893044430,0.4531,3806.2,3805.9,0.1312]
[1753893044616,0.5823,3806.1,3805.8,0.8037]
[1753893044815,0.1312,3806.1,3805.8,0.8037]
[1753893045038,0.5715,3806.1,3805.8,0.8037]
[1753893045355,0.1312,3806.1,3805.8,0.8037]
[1753893045558,0.55,3805.9,3805.7,0.001]
[1753893045742,3.0,3805.8,3805.7,0.8047]
[1753893046143,3.0,3805.8,3805.7,1.2551]
[1753893046516,4.095,3805.9,3805.7,1.2551]
[1753893049014,4.095,3805.9,3805.8,0.4679]
[1753893049811,4.095,3805.9,3805.8,0.9187]
[1753893051876,0.002,3806.2,3805.9,0.7959]
[1753893052038,0.002,3806.2,3806.0,0.01937828]
[1753893052216,0.002,3806.2,3806.0,0.93807828]
[1753893052421,0.002,3806.2,3806.1,0.9187]
[1753893052857,0.002,3806.2,3805.9,0.7959]
[1753893053227,0.9435,3806.1,3805.7,0.001]
[1753893053428,0.9435,3806.0,3805.7,0.001]
[1753893053623,0.4866,3805.9,3805.7,0.001]
[1753893054121,0.4866,3805.8,3805.7,0.001]
[1753893054756,0.002,3806.2,3805.7,0.001]
[1753893054923,0.9435,3806.1,3805.7,0.001]
[1753893055114,0.002,3806.2,3805.7,0.001]
[1753893055319,0.9435,3806.0,3805.7,0.001]
[1753893055653,0.4866,3805.9,3805.7,0.001]
[1753893056157,0.6178,3806.1,3805.7,0.001]
[1753893056461,0.1312,3806.1,3805.7,0.001]
[1753893056755,1.4935,3806.0,3805.7,0.001]
[1753893056961,0.1312,3805.8,3805.7,0.001]
[1753893057252,7.2580446,3805.8,3805.7,0.001]
[1753893057464,8.7187,3805.8,3805.7,0.001]
[1753893062237,8.2618,3805.8,3805.7,0.001]
[1753893062666,7.2252,3805.8,3805.7,0.001]
[1753893062832,8.7187,3805.8,3805.7,0.001]
[1753893063034,9.5022,3805.8,3805.7,0.001]
[1753893063233,39.5022,3805.8,3805.7,0.001]
[1753893064734,9.5022,3805.8,3805.7,0.001]
[1753893067461,8.2618,3805.8,3805.7,0.001]
[1753893067663,0.3773049,3805.8,3805.7,0.001]
[1753893067861,4.094,3805.8,3805.7,0.4689]
[1753893068090,7.094,3805.8,3805.7,0.9197]
[1753893068314,4.094,3805.8,3805.7,0.9197]
[1753893068599,4.094,3805.8,3805.7,0.001]
[1753893068990,4.094,3805.8,3805.7,0.9197]
[1753893069692,4.094,3805.8,3805.7,0.001]
[1753893073899,4.094,3805.8,3805.7,0.4689]
[1753893074060,4.094,3805.8,3805.7,0.001]
[1753893074966,4.094,3805.8,3805.7,0.4689]
[1753893075363,4.094,3805.8,3805.7,0.001]
[1753893075991,0.1332,3806.1,3805.7,0.8299]
[1753893076197,4.33909851,3806.0,3805.7,1.2807]
[1753893076498,0.24609851,3805.9,3805.8,0.4679]
[1753893076684,4.093,3806.0,3805.8,0.9133]
[1753893076926,0.24609333,3805.9,3805.8,0.5909]
[1753893077202,4.093,3806.0,3805.9,0.4597]
[1753893077501,4.33910786,3806.0,3805.9,0.4597]
[1753893078083,4.093,3806.0,3805.9,0.4597]
[1753893079177,4.093,3806.0,3805.9,0.9133]
[1753893079796,4.092,3806.0,3805.9,0.9133]
[1753893082789,0.002,3806.1,3805.9,0.9133]
[1753893082963,0.002,3806.1,3806.0,1.8316]
[1753893093115,0.002,3806.1,3806.0,4.45903037]
[1753893093498,0.002,3806.1,3806.0,4.47840865]
[1753893093820,0.002,3806.1,3806.0,1.8316]
[1753893100745,0.002,3806.1,3806.0,1.8326]
[1753893100906,0.002,3806.1,3806.0,0.9193]
[1753893101101,0.9218,3806.1,3806.0,0.1322]
[1753893101347,5.0098,3806.1,3806.0,0.1322]
[1753893102349,5.7716,3806.1,3806.0,0.1322]
[1753893103450,5.7716,3806.1,3806.0,0.001]
[1753893108182,0.002,3806.1,3806.0,0.001]
[1753893108375,0.002,3806.1,3806.0,0.1322]
[1753893108569,4.089,3806.1,3806.0,0.6132]
[1753893109804,4.089,3806.1,3806.0,0.1322]
[1753893110481,0.4954,3806.1,3806.0,0.1322]
[1753893110841,5.0277,3806.1,3806.0,0.1322]
[1753893110977,5.0277,3806.1,3806.0,0.001]
[1753893111781,0.002,3806.1,3806.0,0.001]
[1753893112005,4.089,3806.1,3806.0,0.1322]
[1753893113184,4.5824,3806.1,3806.0,0.1322]
[1753893113470,4.5814,3806.1,3806.0,0.1322]
[1753893114107,0.4954,3806.1,3806.0,0.1322]
[1753893114276,4.5814,3806.1,3806.0,0.1322]
[1753893115696,0.4954,3806.1,3806.0,0.1322]
[1753893116101,4.5814,3806.1,3806.0,0.1322]
[1753893116301,4.088,3806.1,3806.0,0.1322]
[1753893117018,0.002,3806.1,3806.0,0.1322]
[1753893117199,4.088,3806.1,3806.0,1.3961]
[1753893117602,4.088,3806.1,3806.0,0.1322]
[1753893117806,5.0267,3806.1,3806.0,0.1322]
[1753893120520,4.088,3806.1,3806.0,0.1322]
[1753893122004,4.5814,3806.1,3806.0,0.1322]
[1753893122204,5.0267,3806.1,3806.0,0.1322]
[1753893123732,0.4954,3806.1,3806.0,0.1322]
[1753893123915,4.087,3806.1,3806.0,0.1322]
[1753893124290,0.002,3806.1,3806.0,0.1322]
[1753893124491,0.002,3806.1,3806.0,1.4463]
[1753893124725,0.002,3806.1,3806.0,1.921]
[1753893125230,0.002,3806.1,3806.0,4.54843037]
[1753893125413,0.002,3806.1,3806.0,4.56780865]
[1753893125604,0.002,3806.1,3806.0,4.54843037]
[1753893126064,0.002,3806.2,3806.0,0.9653]
[1753893126335,2.0851025,3806.1,3806.0,0.001]
[1753893126491,1.7676,3806.1,3806.0,0.001]
[1753893126987,4.143,3806.2,3806.0,0.001]
[1753893127224,0.002,3806.2,3806.0,0.001]
[1753893127730,0.002,3806.2,3806.0,5.75216949]
[1753893127902,0.002,3806.2,3806.0,0.001]
[1753893128105,0.9387,3806.1,3806.0,0.001]
[1753893128322,1.7512,3806.1,3806.0,0.001]
[1753893130318,0.002,3806.2,3806.0,5.75216949]
[1753893131035,0.002,3806.2,3806.1,0.481]
[1753893131333,0.002,3806.2,3806.1,3.58306134]
[1753893131509,0.002,3806.2,3806.1,4.4077379]
[1753893132330,0.002,3806.2,3806.1,1.761]
[1753893132509,0.002,3806.2,3806.1,4.9493]
[1753893132706,0.002,3806.2,3806.1,8.53236134]
[1753893136344,0.002,3806.2,3806.1,8.66356134]
[1753893139045,28.80074805,3806.5,3806.1,8.66356134]
[1753893139267,28.80074805,3806.5,3806.4,9.13032375]
[1753893139565,28.80074805,3806.5,3806.4,13.39752375]
[1753893139739,28.80074805,3806.5,3806.4,13.86392375]
[1753893140057,28.80074805,3806.5,3806.4,9.72792375]
[1753893140261,28.80074805,3806.5,3806.4,14.33082375]
[1753893140766,27.05695275,3806.5,3806.4,9.72792375]
[1753893140909,27.05695275,3806.5,3806.4,14.33382375]
[1753893142461,20.49044584,3806.5,3806.4,14.33382375]
[1753893143761,18.84302915,3806.5,3806.4,17.33382375]
[1753893144110,6.20055012,3806.5,3806.4,17.33382375]
[1753893145315,6.20255012,3806.5,3806.4,17.33382375]
[1753893146554,5.22658732,3806.5,3806.4,17.88382375]
[1753893146927,3.69956999,3806.5,3806.4,17.88382375]
[1753893147454,3.69956999,3806.5,3806.4,17.40992375]
[1753893147660,3.69956999,3806.5,3806.4,17.87682375]
[1753893148731,3.69956999,3806.5,3806.4,12.81152375]
[1753893148933,3.69956999,3806.5,3806.4,16.39252375]
[1753893149132,3.69956999,3806.5,3806.4,12.26152375]
[1753893149334,3.69956999,3806.5,3806.4,16.39152375]
[1753893149646,3.69956999,3806.5,3806.4,16.85792375]
[1753893150357,3.69956999,3806.5,3806.4,9.26152375]
[1753893150556,4.15826999,3806.5,3806.4,7.64135426]
[1753893151434,3.69956999,3806.5,3806.4,6.88735426]
[1753893151659,3.69956999,3806.5,3806.4,0.1312]
[1753893151660,4.60586999,3806.5,3806.4,0.1312]
[1753893152280,5.38056999,3806.5,3806.4,4.2592]
[1753893153486,5.38056999,3806.5,3806.4,0.1312]
[1753893153652,5.38056999,3806.5,3806.4,4.2592]
[1753893155488,5.38056999,3806.5,3806.4,0.1312]
[1753893155811,4.60586999,3806.5,3806.4,12.63752375]
[1753893156021,4.15826999,3806.5,3806.4,10.01036949]
[1753893156370,4.15826999,3806.5,3806.4,12.63752375]
[1753893156767,3.69956999,3806.5,3806.4,12.63752375]
[1753893157096,3.69956999,3806.5,3806.4,10.01036949]
[1753893158494,3.69956999,3806.5,3806.4,12.63752375]
[1753893160913,3.69956999,3806.5,3806.4,12.63052375]
[1753893161272,3.69956999,3806.5,3806.4,13.09692375]
[1753893161477,3.69956999,3806.5,3806.4,13.56382375]
[1753893161908,3.69956999,3806.5,3806.4,14.38602375]
[1753893163995,3.69956999,3806.5,3806.4,13.45072375]
[1753893164327,3.69956999,3806.5,3806.4,8.50952375]
[1753893164540,4.15826999,3806.5,3806.4,12.62652375]
[1753893165018,3.69956999,3806.5,3806.4,12.62652375]
[1753893167528,3.69956999,3806.5,3806.4,12.62752375]
[1753893169015,3.69956999,3806.5,3806.4,12.62052375]
[1753893171045,3.69956999,3806.5,3806.4,13.08562375]
[1753893171457,3.69956999,3806.5,3806.4,13.51332375]
[1753893171611,3.69956999,3806.5,3806.4,14.27952375]
[1753893172750,3.69956999,3806.5,3806.4,14.82952375]
[1753893173406,3.69956999,3806.5,3806.4,14.82652375]
[1753893173822,3.69956999,3806.5,3806.4,10.71952375]
[1753893174054,3.69956999,3806.5,3806.4,14.82552375]
[1753893174853,3.69956999,3806.5,3806.4,10.71952375]
[1753893175040,3.69956999,3806.5,3806.4,14.82452375]
[1753893175457,3.69956999,3806.5,3806.4,7.62955426]
[1753893175654,4.16236999,3806.5,3806.4,2.75935426]
[1753893175961,4.16236999,3806.5,3806.4,6.86435426]
[1753893176458,3.69956999,3806.5,3806.4,12.61552375]
[1753893177017,3.69956999,3806.5,3806.4,13.08062375]
[1753893177350,3.69956999,3806.5,3806.4,17.81462375]
[1753893177556,0.002,3806.6,3806.5,2.62708524]
[1753893177758,0.002,3806.6,3806.5,7.84555488]
[1753893177918,0.002,3806.6,3806.5,7.82618524]
[1753893178735,0.002,3806.6,3806.5,11.03638524]
[1753893179125,0.002,3806.6,3806.5,11.50148524]
[1753893179426,0.002,3806.6,3806.5,11.92918524]
[1753893179823,0.002,3806.6,3806.5,11.49948524]
[1753893180042,0.002,3806.6,3806.5,11.03438524]
[1753893180764,0.002,3806.6,3806.5,6.93338524]
[1753893180942,0.002,3806.6,3806.5,11.49848524]
[1753893181282,0.002,3806.6,3806.5,11.92618524]
[1753893184076,0.002,3806.6,3806.5,11.03038524]
[1753893184783,0.913,3806.6,3806.5,2.62708524]
[1753893185072,0.913,3806.6,3806.5,6.72208524]
[1753893185366,0.002,3806.6,3806.5,6.72208524]
[1753893185569,0.002,3806.6,3806.5,7.61488524]
[1753893185729,0.002,3806.6,3806.5,11.99318524]
[1753893186138,0.002,3806.6,3806.5,11.56548524]
[1753893186756,0.913,3806.6,3806.5,9.72208524]
[1753893186943,0.913,3806.6,3806.5,2.62708524]
[1753893187144,0.913,3806.6,3806.5,6.72408524]
[1753893188009,0.002,3806.6,3806.5,12.47525473]
[1753893189368,0.4648,3806.6,3806.5,6.72408524]
[1753893189581,0.913,3806.6,3806.5,6.72408524]
[1753893189893,0.913,3806.6,3806.5,2.62708524]
[1753893190210,0.913,3806.6,3806.5,6.72308524]
[1753893190769,0.4648,3806.6,3806.5,6.72308524]
[1753893190984,0.002,3806.6,3806.5,6.72308524]
[1753893191191,0.002,3806.6,3806.5,10.18818524]
[1753893192594,0.002,3806.6,3806.5,11.43048524]
[1753893192765,0.002,3806.6,3806.5,11.98048524]
[1753893193298,0.002,3806.6,3806.5,11.55278524]
[1753893193604,0.002,3806.6,3806.5,11.98048524]
[1753893195193,0.002,3806.6,3806.5,11.08168524]
[1753893195683,0.002,3806.6,3806.5,5.62708524]
[1753893195983,0.913,3806.6,3806.5,9.71708524]